fUSD/lending_fUSD_20250213
["ID","MTS","AMOUNT","RATE_DAILY","PERIOD"]
[352912786,1739416265405,-151.0,0.0001648,2]
[352912787,1739416265414,-203.369371,0.0001648,2]
[352912788,1739416265424,-203.369371,0.0001648,2]
[352912789,1739416265434,-166.716184,0.0001648,2]
[352912790,1739416265445,-166.716184,0.0001648,2]
[352912791,1739416265455,-340.15556,0.0001648,2]
[352912792,1739416265464,-340.15556,0.0001648,2]
[352912793,1739416265474,-151.0,0.0001648,2]
[352912794,1739416265484,-296.324661,0.0001648,2]
[352912795,1739416265494,-151.0,0.0001648,2]
[352912796,1739416265503,-151.0,0.0001648,2]
[352912797,1739416265513,-151.0,0.0001648,2]
[352912798,1739416265524,-151.0,0.0001648,2]
[352912799,1739416265533,-151.151026,0.0001648,2]
[352912800,1739416265543,-151.151026,0.0001648,2]
[352912801,1739416265553,-151.0,0.0001648,2]
[352912802,1739416265562,-174.126113,0.0001648,2]
[352912803,1739416265573,-174.126113,0.0001648,2]
[352912804,1739416265583,-772.722803,0.0001648,2]
[352912805,1739416265593,-772.722803,0.0001648,2]
[352912806,1739416265603,-459.593366,0.0001648,2]
[352912807,1739416265612,-459.593366,0.0001648,2]
[352912808,1739416265622,-151.0,0.0001648,2]
[352912809,1739416265631,-151.0,0.0001648,2]
[352912810,1739416265641,-163.853309,0.0001648,2]
[352912811,1739416265651,-5080.341095,0.0001648,2]
[352912812,1739416265661,-163.853309,0.0001648,2]
[352912813,1739416265670,-5080.341095,0.0001648,2]
[352912814,1739416265679,-151.0,0.0001648,2]
[352912815,1739416265690,-151.0,0.0001648,2]
[352912816,1739416265701,-265.846559,0.0001648,2]
[352912817,1739416265710,-265.846559,0.0001648,2]
[352912818,1739416265720,-414.233134,0.0001648,2]
[352912819,1739416265730,-632.330722,0.0001648,2]
[352912820,1739416265741,-414.233134,0.0001648,2]
[352912821,1739416265751,-632.330722,0.0001648,2]
[352912822,1739416265761,-151.0,0.0001648,2]
[352912823,1739416265771,-151.0,0.0001648,2]
[352912824,1739416265781,-151.0,0.0001648,2]
[352912825,1739416265792,-151.0,0.0001648,2]
[352912826,1739416265802,-200.0,0.00016485,2]
[352912827,1739416265812,-171.237542,0.00016489,2]
[352912828,1739416265821,-151.0,0.00016489,2]
[352912829,1739416265831,-151.0,0.00016489,2]
[352912830,1739416265842,-151.0,0.00016489,2]
[352912831,1739416265852,-151.0,0.00016489,2]
[352912832,1739416265862,-151.0,0.00016489,2]
[352912833,1739416265871,-2131.0218808,0.00016489,2]
[352912834,1739416265881,-2131.0218808,0.00016489,2]
[352912835,1739416265891,-2131.0218808,0.00016489,2]
[352912836,1739416265901,-2131.0218808,0.00016489,2]
[352912837,1739416265911,-2131.0218808,0.00016489,2]
[352912838,1739416265920,-159.16792133,0.00016489,2]
[352912839,1739416265937,-3012.5476735,0.00016489,2]
[352912840,1739416265948,-1770.79947997,0.00016489,2]
[352912841,1739416265958,-3103.65052003,0.00016489,2]
[352912842,1739416265969,-410.40747272,0.00016489,2]
[352912843,1739416265982,-1428.45708205,0.00016489,2]
[352912844,1739416265992,-4942.5150748,0.00016489,2]
[352912845,1739416266002,-4942.5150748,0.00016489,2]
[352912846,1739416266011,-4942.5150748,0.00016489,2]
[352912847,1739416266022,-202.83846037,0.0001649,2]
[352912848,1739416266031,-80771.26998515,0.0001649,5]
[352912849,1739416266043,-8661.09256048,0.0001649,5]
[352912850,1739416266054,-5004.25295756,0.00016498,3]
[352912851,1739416266064,-257.6030732,0.000165,2]
[352912852,1739416266073,-7125.88121534,0.000165,5]
[352912853,1739416266085,-19694.309596,0.000165,5]
[352912854,1739416697303,154.02,0.00010137,2]
[352912855,1739416758798,85622.7584,8.973e-05,2]
[352912856,1739416787253,5000.0,8.973e-05,2]
[352912857,1739416948021,157.0,5e-05,120]
[352912859,1739417000947,265496.38086405,8.963e-05,2]
[352912860,1739417108792,65998.5760617,0.0001,2]
[352912861,1739417131270,2792.83173172,0.00011,2]
[352912863,1739417233118,-550.0,0.00013,2]
[352912864,1739417233140,-552.55,0.00013333,2]
[352912865,1739417233160,-150.0,0.00014,2]
[352912866,1739417233179,-1684.50827423,0.00014081,2]
[352912867,1739417233199,-204.30107712,0.000142,2]
[352912868,1739417233219,-150.0,0.000143,2]
[352912869,1739417233239,-600.0,0.00015,2]
[352912870,1739417233259,-167.58,0.0001507,2]
[352912871,1739417233279,-283.85,0.00015089,2]
[352912872,1739417233299,-4615.34014865,0.00015151,2]
[352912873,1739417233320,-461.72,0.00015159,2]
[352912874,1739417233340,-300.0,0.00015239,2]
[352912875,1739417233364,-739.79,0.0001524,2]
[352912876,1739417233384,-12138.04075825,0.00015402,2]
[352912877,1739417233404,-300.0,0.00015462,2]
[352912878,1739417233426,-502.96,0.00015462,2]
[352912879,1739417233449,-507.27,0.00015462,2]
[352912880,1739417233470,-509.08,0.00015462,2]
[352912881,1739417233494,-494.45,0.00015462,2]
[352912882,1739417233515,-509.13,0.00015462,2]
[352912883,1739417233536,-509.81,0.00015463,2]
[352912884,1739417233557,-496.7,0.00015463,2]
[352912885,1739417233577,-500.51,0.00015463,2]
[352912886,1739417233600,-509.31,0.00015463,2]
[352912887,1739417233621,-500.59,0.00015463,2]
[352912888,1739417233642,-508.61,0.00015463,2]
[352912889,1739417233664,-508.14,0.00015463,2]
[352912890,1739417233689,-503.28,0.00015463,2]
[352912891,1739417233711,-500.51,0.00015463,2]
[352912892,1739417233732,-1000.0,0.00015463,2]
[352912893,1739417233755,-552.55,0.00015597,2]
[352912894,1739417233776,-200.0,0.00015602,5]
[352912895,1739417233797,-66521.71247027,0.00015614,5]
[352912896,1739417233816,-200.0,0.00015621,5]
[352912897,1739417233836,-152.0,0.0001565,3]
[352912898,1739417233858,-800.0,0.00015651,2]
[352912899,1739417233878,-900.0,0.00015651,2]
[352912900,1739417233898,-500.0,0.00015651,2]
[352912901,1739417233921,-66521.71247027,0.00015651,5]
[352912902,1739417233941,-66521.71247027,0.00015665,5]
[352912903,1739417233962,-23081.28342545,0.00015688,5]
[352912904,1739417235126,-25495.7300656,0.00015688,5]
[352912905,1739417238078,-17944.69897922,0.00015688,5]
[352912906,1739417238099,-200.0,0.00015692,5]
[352912907,1739417238120,-15075.03470804,0.00015789,2]
[352912908,1739417238141,-2024.0,0.00015842,2]
[352912909,1739417238161,-638.0,0.00015842,2]
[352912910,1739417238180,-569.0,0.00015842,2]
[352912911,1739417238200,-1786.0,0.00015842,2]
[352912912,1739417238220,-193.74,0.00015842,2]
[352912913,1739417238239,-4027.0,0.00015842,2]
[352912914,1739417238259,-3000.59614638,0.00015842,2]
[352912915,1739417248122,-914.40385362,0.00015842,2]
[352912916,1739417248144,-151.52,0.00015842,2]
[352912917,1739417248165,-1008.0,0.00015842,2]
[352912918,1739417248186,-1109.0,0.00015842,2]
[352912919,1739417248207,-775.49,0.00015945,2]
[352912920,1739417248229,-639.93,0.00015945,2]
[352912921,1739417248251,-155.94515964,0.00015945,2]
[352912922,1739417248272,-152.0,0.00015975,4]
[352912923,1739417248293,-300.0,0.00015999,2]
[352912924,1739417248314,-150.0,0.00016,2]
[352912925,1739417248335,-49218.90576094,0.00016,5]
[352912926,1739417248357,-509.7099374,0.00016037,2]
[352912927,1739417248378,-185.7837763,0.00016169,2]
[352912928,1739417248406,-187.489353,0.00016189,2]
[352912929,1739417248427,-367.0,0.000162,2]
[352912930,1739417248450,-559.0,0.000162,2]
[352912931,1739417248471,-231.0,0.000162,2]
[352912932,1739417248493,-1954.2623,0.00016219,2]
[352912933,1739417248515,-8214.2651455,0.0001622,2]
[352912934,1739417248539,-150.0,0.00016226,2]
[352912935,1739417248562,-150.0,0.00016226,2]
[352912936,1739417248585,-501.9,0.00016231,2]
[352912937,1739417248608,-150.76613659,0.00016232,2]
[352912938,1739417248630,-30753.98114716,0.00016236,2]
[352912939,1739417248653,-150.0,0.00016237,2]
[352912940,1739417248677,-150.0,0.00016244,2]
[352912941,1739417248704,-150.0,0.00016246,2]
[352912942,1739417248728,-150.0,0.00016248,2]
[352912943,1739417248752,-150.0,0.0001625,2]
[352912944,1739417248776,-150.0,0.00016251,2]
[352912945,1739417248798,-150.76613659,0.00016253,2]
[352912946,1739417248820,-150.0,0.00016254,2]
[352912947,1739417248844,-30753.98114708,0.00016254,2]
[352912948,1739417248867,-2135.387,0.00016257,2]
[352912949,1739417248890,-172.15,0.00016257,2]
[352912950,1739417248914,-150.0,0.00016258,2]
[352912951,1739417248936,-150.0,0.0001627,2]
[352912952,1739417248959,-150.0,0.00016272,2]
[352912953,1739417248989,-150.0,0.00016274,2]
[352912954,1739417249017,-150.76613659,0.00016274,2]
[352912955,1739417249038,-208.99514322,0.00016275,2]
[352912956,1739417249061,-150.0,0.00016287,2]
[352912957,1739417249085,-150.0,0.00016289,2]
[352912958,1739417249109,-150.0,0.00016292,2]
[352912959,1739417249130,-150.76613659,0.00016295,2]
[352912960,1739417249154,-150.0,0.00016299,2]
[352912961,1739417249176,-152.0,0.000163,5]
[352912962,1739417249197,-80845.91175372,0.000163,2]
[352912963,1739417249220,-150.0,0.00016302,2]
[352912964,1739417249242,-150.0,0.00016305,2]
[352912965,1739417249266,-150.0,0.00016306,2]
[352912966,1739417249290,-150.0,0.00016306,2]
[352912967,1739417249314,-150.0,0.00016315,2]
[352912968,1739417249337,-150.0,0.00016315,2]
[352912969,1739417249361,-150.0,0.00016317,2]
[352912970,1739417249384,-150.0,0.00016318,2]
[352912971,1739417249407,-150.0,0.00016319,2]
[352912972,1739417249431,-150.0,0.00016319,2]
[352912973,1739417249455,-150.0,0.00016322,2]
[352912974,1739417249478,-75914.44479312,0.00016327,2]
[352912975,1739417249503,-150.0,0.00016332,2]
[352912976,1739417249526,-27005.3962624,0.00016334,2]
[352912977,1739417249549,-58710.07565353,0.00016335,2]
[352912979,1739417283703,64179.86944707,0.0001,2]
[352912989,1739417328262,13609.76939186,0.0001,2]
[352913005,1739417431736,-500.55,0.00015341,2]
[352913007,1739417431747,-494.92,0.00015341,2]
[352913008,1739417431758,-1000.0,0.00015341,2]
[352913009,1739417431768,-503.66,0.00015651,2]
[352913010,1739417431780,-492.36,0.00015651,2]
[352913011,1739417431791,-506.59,0.00015651,2]
[352913012,1739417431802,-509.77,0.00015651,2]
[352913013,1739417431812,-503.08,0.00015651,2]
[352913014,1739417431824,-499.79,0.00015651,2]
[352913015,1739417431835,-1100.0,0.00015651,2]
[352913016,1739417431845,-1100.0,0.00015651,2]
[352913017,1739417431856,-500.0,0.00015651,2]
[352913018,1739417431868,-151.0,0.00015842,2]
[352913019,1739417431879,-150.0,0.00015842,2]
[352913020,1739417431890,-494.58,0.00015842,2]
[352913021,1739417431902,-150.0,0.00016,2]
[352913022,1739417431914,-226.3451032,0.00016169,2]
[352913023,1739417431925,-367.0,0.000162,2]
[352913024,1739417431935,-156.03781194,0.00016235,2]
[352913025,1739417431946,-156.03781191,0.00016259,2]
[352913026,1739417431957,-30753.98114708,0.00016272,2]
[352913038,1739417432196,-156.03781191,0.00016282,2]
[352913040,1739417432217,-30753.98114708,0.00016291,2]
[352913041,1739417432227,-156.03781191,0.00016306,2]
[352913042,1739417432237,-30753.98114708,0.00016309,2]
[352913043,1739417432247,-30753.98114708,0.00016327,2]
[352913044,1739417432256,-156.03781191,0.00016329,2]
[352913045,1739417432266,-150.0,0.00016336,2]
[352913046,1739417432275,-505.28,0.00016336,2]
[352913047,1739417432285,-504.27,0.00016338,2]
[352913048,1739417432296,-150.0,0.00016343,2]
[352913049,1739417432306,-150.0,0.00016344,2]
[352913050,1739417432316,-30753.98114708,0.00016345,2]
[352913051,1739417432325,-150.0,0.00016346,2]
[352913052,1739417432336,-150.0,0.00016351,2]
[352913053,1739417432346,-156.03781191,0.00016353,2]
[352913054,1739417432356,-30753.98114708,0.00016364,2]
[352913055,1739417432366,-26859.4211474,0.00016366,2]
[352913056,1739417432376,-150.0,0.00016368,2]
[352913057,1739417432386,-150.0,0.00016371,2]
[352913059,1739417432397,-26859.4211474,0.00016372,2]
[352913061,1739417432407,-500.0,0.00016373,2]
[352913063,1739417432416,-226.00587533,0.00016373,2]
[352913065,1739417432426,-26859.4211474,0.00016374,2]
[352913067,1739417432436,-150.0,0.00016375,2]
[352913069,1739417432447,-156.03781191,0.00016376,2]
[352913072,1739417432462,-150.0,0.00016377,2]
[352913074,1739417432472,-150.0,0.00016379,2]
[352913076,1739417432482,-150.0,0.0001638,2]
[352913078,1739417432492,-30753.98114708,0.00016382,2]
[352913080,1739417432502,-53718.8422948,0.00016382,2]
[352913082,1739417432513,-150.0,0.00016384,2]
[352913084,1739417432523,-150.0,0.00016388,2]
[352913086,1739417432533,-500.0,0.00016389,2]
[352913088,1739417432544,-500.0,0.00016389,2]
[352913090,1739417432554,-500.0,0.00016389,2]
[352913092,1739417432564,-503.96081045,0.00016389,2]
[352913094,1739417432575,-292.28670657,0.00016389,2]
[352913096,1739417432584,-533.23633575,0.00016389,2]
[352913097,1739417432595,-53718.8422948,0.0001639,2]
[352913098,1739417432605,-5800.0,0.00016392,2]
[352913099,1739417432616,-150.0,0.00016399,2]
[352913101,1739417432627,-8018.527115,0.000164,2]
[352913102,1739417432637,-5800.0,0.000164,2]
[352913103,1739417432647,-208.99514322,0.000164,2]
[352913104,1739417432658,-30753.98114708,0.000164,2]
[352913105,1739417432669,-156.03781191,0.000164,2]
[352913106,1739417432680,-775.49,0.000164,2]
[352913107,1739417432692,-213.0559774,0.000164,2]
[352913108,1739417432703,-150.0,0.00016409,2]
[352913109,1739417432716,-150.0,0.0001641,2]
[352913110,1739417432726,-150.0,0.00016413,2]
[352913111,1739417432741,-150.0,0.00016421,2]
[352913112,1739417432751,-184.85296561,0.00016427,2]
[352913113,1739417432761,-48356.83897207,0.00016428,2]
[352913114,1739417432775,-381393.89938693,0.00016428,2]
[352913115,1739417432788,-150.0,0.00016431,2]
[352913116,1739417432798,-150.0,0.00016432,2]
[352913117,1739417432809,-150.0,0.00016435,2]
[352913118,1739417432820,-999.0,0.00016437,2]
[352913119,1739417432831,-300.0,0.00016437,2]
[352913120,1739417432842,-1186.0,0.00016438,2]
[352913121,1739417432852,-151.0,0.00016438,2]
[352913122,1739417432862,-151.0,0.00016438,2]
[352913123,1739417432872,-151.0,0.00016438,2]
[352913124,1739417432882,-151.0,0.00016438,2]
[352913125,1739417432892,-151.0,0.00016438,2]
[352913126,1739417432902,-500.0,0.00016438,2]
[352913127,1739417432912,-500.0,0.00016438,2]
[352913128,1739417432922,-500.0,0.00016438,2]
[352913129,1739417432932,-503.23420922,0.00016438,2]
[352913130,1739417432942,-197.28624164,0.00016438,2]
[352913131,1739417432953,-500.0,0.00016438,2]
[352913132,1739417432962,-296.8214476,0.00016438,2]
[352913133,1739417432973,-500.0,0.00016438,2]
[352913134,1739417432983,-504.76528779,0.00016438,2]
[352913135,1739417432993,-207.70839954,0.00016438,2]
[352913136,1739417433004,-150.0,0.00016438,2]
[352913137,1739417433014,-500.0,0.00016438,2]
[352913138,1739417433025,-500.0,0.00016438,2]
[352913139,1739417433035,-510.96434589,0.00016438,2]
[352913140,1739417433046,-502.83717277,0.00016438,2]
[352913141,1739417433056,-502.36995111,0.00016438,2]
[352913142,1739417433066,-501.98112171,0.00016438,2]
[352913143,1739417433077,-500.0,0.00016438,2]
[352913144,1739417433087,-502.72004245,0.00016438,2]
[352913145,1739417433098,-500.0,0.00016438,2]
[352913146,1739417433114,-610.92,0.00016438,2]
[352913147,1739417433139,-500.0,0.00016438,2]
[352913148,1739417433159,-500.0,0.00016438,2]
[352913149,1739417433186,-502.09379281,0.00016438,2]
[352913150,1739417433208,-500.0,0.00016438,2]
[352913151,1739417433227,-500.0,0.00016438,2]
[352913152,1739417433250,-500.0,0.00016438,2]
[352913153,1739417433274,-500.0,0.00016438,2]
[352913154,1739417433298,-302.42863604,0.00016438,2]
[352913155,1739417433319,-502.36477344,0.00016438,2]
[352913156,1739417433342,-507.30679093,0.00016438,2]
[352913157,1739417433363,-500.37910724,0.00016438,2]
[352913158,1739417433380,-500.0,0.00016438,2]
[352913159,1739417433401,-501.70708653,0.00016438,2]
[352913160,1739417433416,-1897.077947,0.00016438,2]
[352913161,1739417433437,-503.76454255,0.00016438,2]
[352913162,1739417433452,-500.0,0.00016438,2]
[352913163,1739417433482,-500.0,0.00016438,2]
[352913164,1739417433502,-500.0,0.00016438,2]
[352913165,1739417433524,-371.30000652,0.00016438,2]
[352913166,1739417433544,-500.0,0.00016438,2]
[352913167,1739417433564,-163.149451,0.00016438,2]
[352913168,1739417433584,-891.03,0.00016438,2]
[352913169,1739417433603,-500.0,0.00016438,2]
[352913170,1739417433623,-502.64512513,0.00016438,2]
[352913171,1739417433643,-155.637992,0.00016438,2]
[352913172,1739417433662,-944.54,0.00016438,2]
[352913173,1739417433681,-501.89779227,0.00016438,2]
[352913174,1739417433701,-500.0,0.00016438,2]
[352913175,1739417433720,-500.0,0.00016438,2]
[352913176,1739417433742,-500.0,0.00016438,2]
[352913177,1739417433761,-500.0,0.00016438,2]
[352913178,1739417433780,-702.84,0.00016438,2]
[352913179,1739417433800,-502.70637457,0.00016438,2]
[352913180,1739417433819,-500.0,0.00016438,2]
[352913181,1739417433839,-500.0,0.00016438,2]
[352913182,1739417433862,-180.11997735,0.00016438,2]
[352913183,1739417433880,-1424.83,0.00016438,2]
[352913184,1739417433899,-500.0,0.00016438,2]
[352913185,1739417433918,-500.0,0.00016438,2]
[352913186,1739417433936,-500.0,0.00016438,2]
[352913187,1739417433953,-500.0,0.00016438,2]
[352913188,1739417433972,-500.0,0.00016438,2]
[352913189,1739417433993,-500.0,0.00016438,2]
[352913190,1739417434011,-500.0,0.00016438,2]
[352913191,1739417434029,-500.0,0.00016438,2]
[352913192,1739417434047,-1847.691735,0.00016438,2]
[352913193,1739417434066,-500.0,0.00016438,2]
[352913194,1739417434084,-500.0,0.00016438,2]
[352913195,1739417434103,-500.0,0.00016438,2]
[352913196,1739417434124,-500.0,0.00016438,2]
[352913197,1739417434145,-500.0,0.00016438,2]
[352913198,1739417434165,-773.84,0.00016438,2]
[352913199,1739417434186,-915.36,0.00016438,2]
[352913200,1739417434206,-500.0,0.00016438,2]
[352913201,1739417434225,-500.0,0.00016438,2]
[352913202,1739417434244,-500.0,0.00016438,2]
[352913203,1739417434263,-500.0,0.00016438,2]
[352913204,1739417434282,-500.0,0.00016438,2]
[352913205,1739417434303,-500.0,0.00016438,2]
[352913206,1739417434322,-500.0,0.00016438,2]
[352913207,1739417434340,-500.0,0.00016438,2]
[352913208,1739417434358,-249.7460373,0.00016438,2]
[352913209,1739417434376,-500.0,0.00016438,2]
[352913210,1739417434393,-500.0,0.00016438,2]
[352913211,1739417434412,-500.0,0.00016438,2]
[352913212,1739417434430,-500.0,0.00016438,2]
[352913213,1739417434449,-500.0,0.00016438,2]
[352913214,1739417434468,-500.0,0.00016438,2]
[352913215,1739417434485,-500.0,0.00016438,2]
[352913216,1739417434502,-501.45251978,0.00016438,2]
[352913217,1739417434522,-500.0,0.00016438,2]
[352913218,1739417434541,-500.0,0.00016438,2]
[352913219,1739417434559,-500.0,0.00016438,2]
[352913220,1739417434576,-500.0,0.00016438,2]
[352913221,1739417434594,-500.0,0.00016438,2]
[352913222,1739417434612,-500.0,0.00016438,2]
[352913223,1739417434631,-500.0,0.00016438,2]
[352913224,1739417434643,-503.46885896,0.00016438,2]
[352913225,1739417434655,-500.0,0.00016438,2]
[352913226,1739417434666,-500.0,0.00016438,2]
[352913227,1739417434676,-500.0,0.00016438,2]
[352913228,1739417434686,-500.0,0.00016438,2]
[352913229,1739417434698,-500.0,0.00016438,2]
[352913230,1739417434710,-500.0,0.00016438,2]
[352913231,1739417434720,-500.0,0.00016438,2]
[352913232,1739417434730,-467.9667855,0.00016438,2]
[352913233,1739417435095,-500.0,0.00016438,2]
[352913234,1739417435119,-500.0,0.00016438,2]
[352913235,1739417435130,-500.50926776,0.00016438,2]
[352913236,1739417435140,-500.0,0.00016438,2]
[352913237,1739417435152,-500.0,0.00016438,2]
[352913238,1739417435163,-500.0,0.00016438,2]
[352913239,1739417435174,-500.0,0.00016438,2]
[352913240,1739417435184,-500.0,0.00016438,2]
[352913241,1739417435194,-500.0,0.00016438,2]
[352913242,1739417435204,-500.0,0.00016438,2]
[352913243,1739417435213,-552.72,0.00016438,2]
[352913244,1739417435223,-500.0,0.00016438,2]
[352913245,1739417435232,-759.97,0.00016438,2]
[352913246,1739417435241,-502.93332949,0.00016438,2]
[352913247,1739417435252,-500.0,0.00016438,2]
[352913248,1739417435262,-502.9144605,0.00016438,2]
[352913249,1739417435272,-501.08945867,0.00016438,2]
[352913250,1739417435281,-500.0,0.00016438,2]
[352913251,1739417435293,-501.95689106,0.00016438,2]
[352913252,1739417435303,-946.82,0.00016438,2]
[352913253,1739417435313,-500.0,0.00016438,2]
[352913254,1739417435322,-500.0,0.00016438,2]
[352913255,1739417435332,-503.99424904,0.00016438,2]
[352913256,1739417435341,-500.0,0.00016438,2]
[352913257,1739417435351,-500.0,0.00016438,2]
[352913258,1739417435360,-500.0,0.00016438,2]
[352913259,1739417435369,-500.0,0.00016438,2]
[352913260,1739417435379,-500.86538957,0.00016438,2]
[352913261,1739417435388,-500.0,0.00016438,2]
[352913262,1739417435398,-500.0,0.00016438,2]
[352913263,1739417435407,-500.0,0.00016438,2]
[352913264,1739417435417,-711.26,0.00016438,2]
[352913265,1739417435427,-500.0,0.00016438,2]
[352913266,1739417435436,-500.0,0.00016438,2]
[352913267,1739417435446,-500.0,0.00016438,2]
[352913268,1739417435455,-1211.61,0.00016438,2]
[352913269,1739417435464,-500.0,0.00016438,2]
[352913270,1739417435474,-500.0,0.00016438,2]
[352913271,1739417435483,-500.0,0.00016438,2]
[352913272,1739417435492,-1045.69,0.00016438,2]
[352913273,1739417435502,-500.0,0.00016438,2]
[352913274,1739417435512,-500.0,0.00016438,2]
[352913275,1739417435522,-500.0,0.00016438,2]
[352913276,1739417435531,-500.0,0.00016438,2]
[352913277,1739417435540,-666.72,0.00016438,2]
[352913278,1739417435549,-501.78815014,0.00016438,2]
[352913279,1739417435559,-500.0,0.00016438,2]
[352913280,1739417435568,-500.0,0.00016438,2]
[352913281,1739417435577,-500.0,0.00016438,2]
[352913282,1739417435587,-500.0,0.00016438,2]
[352913283,1739417435596,-909.06,0.00016438,2]
[352913284,1739417435605,-500.0,0.00016438,2]
[352913285,1739417435615,-500.0,0.00016438,2]
[352913286,1739417435624,-591.48,0.00016438,2]
[352913287,1739417435633,-500.0,0.00016438,2]
[352913288,1739417435642,-500.0,0.00016438,2]
[352913289,1739417435652,-500.0,0.00016438,2]
[352913290,1739417435661,-500.0,0.00016438,2]
[352913291,1739417435671,-500.0,0.00016438,2]
[352913292,1739417435680,-505.98,0.00016438,2]
[352913293,1739417435689,-500.0,0.00016438,2]
[352913294,1739417435699,-500.0,0.00016438,2]
[352913295,1739417435708,-500.0,0.00016438,2]
[352913296,1739417435717,-500.0,0.00016438,2]
[352913297,1739417435727,-500.0,0.00016438,2]
[352913298,1739417435740,-500.0,0.00016438,2]
[352913299,1739417435749,-220.39108141,0.00016438,2]
[352913300,1739417435758,-500.0,0.00016438,2]
[352913301,1739417435768,-500.0,0.00016438,2]
[352913302,1739417435778,-500.0,0.00016438,2]
[352913303,1739417435788,-500.0,0.00016438,2]
[352913304,1739417435798,-500.0,0.00016438,2]
[352913305,1739417435807,-500.0,0.00016438,2]
[352913306,1739417435818,-628.28,0.00016438,2]
[352913307,1739417435829,-500.0,0.00016438,2]
[352913308,1739417435839,-500.0,0.00016438,2]
[352913309,1739417435848,-501.08140063,0.00016438,2]
[352913310,1739417435858,-500.0,0.00016438,2]
[352913311,1739417435867,-500.0,0.00016438,2]
[352913312,1739417435876,-500.0,0.00016438,2]
[352913313,1739417435886,-500.0,0.00016438,2]
[352913314,1739417435895,-500.0,0.00016438,2]
[352913315,1739417435905,-1163.85,0.00016438,2]
[352913316,1739417435914,-502.0878411,0.00016438,2]
[352913317,1739417435923,-500.0,0.00016438,2]
[352913318,1739417435933,-500.0,0.00016438,2]
[352913319,1739417435942,-500.0,0.00016438,2]
[352913320,1739417435952,-500.0,0.00016438,2]
[352913321,1739417435962,-500.0,0.00016438,2]
[352913322,1739417435971,-171.531819,0.00016438,2]
[352913323,1739417435981,-500.0,0.00016438,2]
[352913324,1739417435991,-500.0,0.00016438,2]
[352913325,1739417436002,-5000.0,0.00016438,3]
[352913326,1739417436012,-500.0,0.00016438,2]
[352913327,1739417436024,-500.94155294,0.00016438,2]
[352913328,1739417436036,-500.0,0.00016438,2]
[352913329,1739417436047,-500.0,0.00016438,2]
[352913330,1739417436056,-558.48,0.00016438,2]
[352913331,1739417436066,-500.0,0.00016438,2]
[352913332,1739417436076,-179.534776,0.00016438,2]
[352913333,1739417436086,-502.35702869,0.00016438,2]
[352913334,1739417436097,-500.0,0.00016438,2]
[352913335,1739417436108,-500.0,0.00016438,2]
[352913336,1739417436118,-500.0,0.00016438,2]
[352913337,1739417436128,-500.0,0.00016438,2]
[352913338,1739417436139,-500.0,0.00016438,2]
[352913339,1739417436151,-834.44,0.00016438,2]
[352913340,1739417436160,-515.45246629,0.00016438,2]
[352913341,1739417436170,-500.0,0.00016438,2]
[352913342,1739417436180,-500.0,0.00016438,2]
[352913343,1739417436190,-500.0,0.00016438,2]
[352913344,1739417436201,-500.0,0.00016438,2]
[352913345,1739417436210,-500.0,0.00016438,2]
[352913346,1739417436222,-500.0,0.00016438,2]